Workbook

Sheet Лист для печати
C1: Включить содержимое. Кнопку нажимать только после того, как "Лист для ввода" полностью заполнен. В конце данного листа вставить данные для подписи.
G2: Ежеквартально, до 20- числа месяца, следующего за отчетным кварталом
G3: на эл. адрес: monitor@krasnodar.ru
A5: ='Лист для ввода'!A5:J5 -> ОТЧЕТ
A6: ='Лист для ввода'!A6:J6 -> о результативности предоставления субсидии (субвенции) местным бюджетам муниципальных образований Краснодарского края в рамках реализации государственной программы Краснодарского края
A7: ='Лист для ввода'!A7:J7 -> "Развитие сельского хозяйства и регулирование рынков сельскохозяйственной продукции, сырья и продовольствия"
A8: ='Лист для ввода'!A8:J8 -> (наименование государственной программы)
A9: ='Лист для ввода'!A9:J9 -> "Обеспечение эпизоотического, ветеринарно-санитарного благополучия в Краснодарском крае и развитие государственной ветеринарной службы Краснодарского края"
A10: ='Лист для ввода'!A10:J10 -> (наименование подпрограммы государственной программы)
A11: ='Лист для ввода'!A11:J11 -> Субвенции на осуществление государственных полномочий по предупреждению и ликвидации болезней животных, их лечению, отлову и содержанию безнадзорных животных, защите населения от болезнй, общих для человека и животных в части регулирования численности безнадзорных животных на территории муниципальных образований Краснодарского края
A12: ='Лист для ввода'!A12:J12 -> (наименование субсидии на софинансирование расходного обязательства муниципального образования (далее – МО), возникающего при выполнении полномочий органов местного самоуправления по вопросам местного значения)
A13: ='Лист для ввода'!A13:J13 -> за 1 квартал 2018 год
A14: ='Лист для ввода'!A14:J14 -> (за I квартал, первое полугодие, 9 месяцев, год)
A16: Наименование муниципального образования (получателя субсидии, субвенции)* | B16: Наименование показателей результативности субсидии (в скобках указать единицы измерения) 1) | J16: Причины невыполнения
B17: ='Лист для ввода'!B17:C17 -> 1. численность отловленных безнадзорных животных (не менее ед.) | D17: ='Лист для ввода'!D17:E17 -> 2. численность содержавшихся безнадзорных животных (не менее ед.) | F17: ='Лист для ввода'!F17:G17 -> 3. численность подобранных и утилизированных павших животных (не менее ед.) | H17: ='Лист для ввода'!H17:I17 -> 4.
B18: Плановое значение2) | C18: Фактическое значение | D18: Плановое значение2) | E18: Фактическое значение | F18: Плановое значение2) | G18: Фактическое значение | H18: Плановое значение2) | I18: Фактическое значение
A19: 1 | B19: 2 | C19: 3 | D19: 4 | E19: 5 | F19: 6 | G19: 7 | H19: 8 | I19: 9 | J19: 10
A20: город-курорт Анапа | B20: 624 | D20: 624 | J20: Соглашение заключено
A21: город Армавир | B21: 182 | D21: 182 | J21: Организация мероприятий по заключению соглашения
A22: город-курорт Геленджик | B22: 302 | D22: 302 | J22: Организация мероприятий по заключению соглашения
A23: город Горячий Ключ | B23: 285 | D23: 285 | J23: Организация мероприятий по заключению соглашения
A24: город Краснодар | B24: 2202 | D24: 2202 | J24: Организация мероприятий по заключению соглашения
A25: город Новороссийск | B25: 148 | D25: 148 | J25: Организация мероприятий по заключению соглашения
A26: город-курорт Сочи | B26: 2419 | D26: 2419 | J26: Соглашение заключено
A27: Абинский район, всего район и поселения | B27: 19 | C27: 0 | D27: 19 | E27: 0 | F27: 0 | G27: 0 | H27: 0 | I27: 0 | J27: Соглашение заключено
A28: Абинский район | B28: 19 | D28: 19
A29: Апшеронский район, всего район и поселения | B29: 37 | C29: 0 | D29: 37 | E29: 0 | F29: 0 | G29: 0 | H29: 0 | I29: 0 | J29: Соглашение заключено
A30: Апшеронский район | B30: 37 | D30: 37
A31: Белоглинский район, всего район и поселения | B31: 13 | C31: 0 | D31: 13 | E31: 0 | F31: 0 | G31: 0 | H31: 0 | I31: 0 | J31: Соглашение заключено
A32: Белоглинский район | B32: 13 | D32: 13
A33: Белореченский район, всего район и поселения | B33: 157 | C33: 0 | D33: 157 | E33: 0 | F33: 0 | G33: 0 | H33: 0 | I33: 0 | J33: Соглашение заключено
A34: Белореченский район | B34: 157 | D34: 157
A35: Брюховецкий район, всего район и поселения | B35: 5 | C35: 0 | D35: 5 | E35: 0 | F35: 0 | G35: 0 | H35: 0 | I35: 0 | J35: Соглашение заключено
A36: Брюховецкий район | B36: 5 | D36: 5
A37: Выселковский район, всего район и поселения | B37: 12 | C37: 0 | D37: 12 | E37: 0 | F37: 0 | G37: 0 | H37: 0 | I37: 0 | J37: Соглашение заключено
A38: Выселковский район | B38: 12 | D38: 12
A39: Гулькевичский район, всего район и поселения | B39: 252 | C39: 0 | D39: 252 | E39: 0 | F39: 0 | G39: 0 | H39: 0 | I39: 0 | J39: Соглашение заключено
A40: Гулькевичский район | B40: 252 | D40: 252
A41: Динской район, всего район и поселения | B41: 252 | C41: 0 | D41: 252 | E41: 0 | F41: 0 | G41: 0 | H41: 0 | I41: 0 | J41: Организация мероприятий по заключению соглашения
A42: Динской район | B42: 252 | D42: 252
A43: Ейский район, всего район и поселения | B43: 374 | C43: 0 | D43: 374 | E43: 0 | F43: 0 | G43: 0 | H43: 0 | I43: 0 | J43: Соглашение заключено
A44: Ейский район | B44: 374 | D44: 374
A45: Кавказский район, всего район и поселения | B45: 334 | C45: 0 | D45: 334 | E45: 0 | F45: 0 | G45: 0 | H45: 0 | I45: 0 | J45: Организация мероприятий по заключению соглашения
A46: Кавказский район | B46: 334 | D46: 334
A47: Калининский район, всего район и поселения | B47: 9 | C47: 0 | D47: 9 | E47: 0 | F47: 0 | G47: 0 | H47: 0 | I47: 0 | J47: Организация мероприятий по заключению соглашения
A48: Калининский район | B48: 9 | D48: 9
A49: Каневской район, всего район и поселения | B49: 41 | C49: 0 | D49: 41 | E49: 0 | F49: 0 | G49: 0 | H49: 0 | I49: 0 | J49: Соглашение заключено
A50: Каневской район | B50: 41 | D50: 41
A51: Кореновский район, всего район и поселения | B51: 252 | C51: 0 | D51: 252 | E51: 0 | F51: 0 | G51: 0 | H51: 0 | I51: 0 | J51: Организация мероприятий по заключению соглашения
A52: Кореновский район | B52: 252 | D52: 252
A53: Красноармейский район, всего район и поселения | B53: 135 | C53: 0 | D53: 135 | E53: 0 | F53: 0 | G53: 0 | H53: 0 | I53: 0 | J53: Соглашение заключено
A54: Красноармейский район | B54: 135 | D54: 135
A55: Крыловский район, всего район и поселения | B55: 81 | C55: 0 | D55: 81 | E55: 0 | F55: 0 | G55: 0 | H55: 0 | I55: 0 | J55: Организация мероприятий по заключению соглашения
A56: Крыловский район | B56: 81 | D56: 81
A57: Крымский район, всего район и поселения | B57: 56 | C57: 0 | D57: 56 | E57: 0 | F57: 0 | G57: 0 | H57: 0 | I57: 0 | J57: Организация мероприятий по заключению соглашения
A58: Крымский район | B58: 56 | D58: 56
A59: Курганинский район, всего район и поселения | B59: 61 | C59: 0 | D59: 61 | E59: 0 | F59: 0 | G59: 0 | H59: 0 | I59: 0 | J59: Соглашение заключено
A60: Курганинский район | B60: 61 | D60: 61
A61: Кущевский район, всего район и поселения | B61: 34 | C61: 0 | D61: 34 | E61: 0 | F61: 0 | G61: 0 | H61: 0 | I61: 0 | J61: Организация мероприятий по заключению соглашения
A62: Кущевский район | B62: 34 | D62: 34
A63: Лабинский район, всего район и поселения | B63: 15 | C63: 0 | D63: 15 | E63: 0 | F63: 0 | G63: 0 | H63: 0 | I63: 0 | J63: Организация мероприятий по заключению соглашения
A64: Лабинский район | B64: 15 | D64: 15
A65: Ленинградский район, всего район и поселения | B65: 117 | C65: 0 | D65: 117 | E65: 0 | F65: 0 | G65: 0 | H65: 0 | I65: 0 | J65: Соглашение заключено
A66: Ленинградский район | B66: 117 | D66: 117
A67: Мостовский район, всего район и поселения | B67: 23 | C67: 0 | D67: 23 | E67: 0 | F67: 0 | G67: 0 | H67: 0 | I67: 0 | J67: Соглашение заключено
A68: Мостовский район | B68: 23 | D68: 23
A69: Новокубанский район, всего район и поселения | B69: 130 | C69: 0 | D69: 130 | E69: 0 | F69: 0 | G69: 0 | H69: 0 | I69: 0 | J69: Организация мероприятий по заключению соглашения
A70: Новокубанский район | B70: 130 | D70: 130
A71: Новопокровский район, всего район и поселения | B71: 10 | C71: 0 | D71: 10 | E71: 0 | F71: 0 | G71: 0 | H71: 0 | I71: 0 | J71: Организация мероприятий по заключению соглашения
A72: Новопокровский район | B72: 10 | D72: 10
A73: Отрадненский район, всего район и поселения | B73: 20 | C73: 0 | D73: 20 | E73: 0 | F73: 0 | G73: 0 | H73: 0 | I73: 0 | J73: Организация мероприятий по заключению соглашения
A74: Отрадненский район | B74: 20 | D74: 20
A75: Павловский район, всего район и поселения | B75: 59 | C75: 0 | D75: 59 | E75: 0 | F75: 0 | G75: 0 | H75: 0 | I75: 0 | J75: Организация мероприятий по заключению соглашения
A76: Павловский район | B76: 59 | D76: 59
A77: Приморско-Ахтарский район, всего район и поселения | B77: 74 | C77: 0 | D77: 74 | E77: 0 | F77: 0 | G77: 0 | H77: 0 | I77: 0 | J77: Организация мероприятий по заключению соглашения
A78: Приморско-Ахтарский район | B78: 74 | D78: 74
A79: Северский район, всего район и поселения | B79: 109 | C79: 0 | D79: 109 | E79: 0 | F79: 0 | G79: 0 | H79: 0 | I79: 0 | J79: Соглашение заключено
A80: Северский район | B80: 109 | D80: 109
A81: Славянский район, всего район и поселения | B81: 316 | C81: 0 | D81: 316 | E81: 0 | F81: 0 | G81: 0 | H81: 0 | I81: 0 | J81: Организация мероприятий по заключению соглашения
A82: Славянский район | B82: 316 | D82: 316
A83: Староминский район, всего район и поселения | B83: 101 | C83: 0 | D83: 101 | E83: 0 | F83: 0 | G83: 0 | H83: 0 | I83: 0 | J83: Организация мероприятий по заключению соглашения
A84: Староминский район | B84: 101 | D84: 101
A85: Тбилисский район, всего район и поселения | B85: 44 | C85: 0 | D85: 44 | E85: 0 | F85: 0 | G85: 0 | H85: 0 | I85: 0 | J85: Соглашение заключено
A86: Тбилисский район | B86: 44 | D86: 44
A87: Темрюкский район, всего район и поселения | B87: 176 | C87: 0 | D87: 176 | E87: 0 | F87: 0 | G87: 0 | H87: 0 | I87: 0 | J87: Организация мероприятий по заключению соглашения
A88: Темрюкский район | B88: 176 | D88: 176
A89: Тимашевский район, всего район и поселения | B89: 165 | C89: 0 | D89: 165 | E89: 0 | F89: 0 | G89: 0 | H89: 0 | I89: 0 | J89: Соглашение заключено
A90: Тимашевский район | B90: 165 | D90: 165
A91: Тихорецкий район, всего район и поселения | B91: 164 | C91: 0 | D91: 164 | E91: 0 | F91: 0 | G91: 0 | H91: 0 | I91: 0 | J91: Соглашение заключено
A92: Тихорецкий район | B92: 164 | D92: 164
A93: Туапсинский район, всего район и поселения | B93: 847 | C93: 0 | D93: 847 | E93: 0 | F93: 0 | G93: 0 | H93: 0 | I93: 0 | J93: Соглашение заключено
A94: Туапсинский район | B94: 847 | D94: 847
A95: Успенский район, всего район и поселения | B95: 15 | C95: 0 | D95: 15 | E95: 0 | F95: 0 | G95: 0 | H95: 0 | I95: 0 | J95: Организация мероприятий по заключению соглашения
A96: Успенский район | B96: 15 | D96: 15
A97: Усть-Лабинский район, всего район и поселения | B97: 215 | C97: 0 | D97: 215 | E97: 0 | F97: 0 | G97: 0 | H97: 0 | I97: 0 | J97: Организация мероприятий по заключению соглашения
A98: Усть-Лабинский район | B98: 215 | D98: 215
A99: Щербиновский район, всего район и поселения | B99: 32 | C99: 0 | D99: 32 | E99: 0 | F99: 0 | G99: 0 | H99: 0 | I99: 0 | J99: Организация мероприятий по заключению соглашения
A100: Щербиновский район | B100: 32 | D100: 32
A101: Всего | B101: 10918 | D101: 10918
A103: Руководитель органа исполнительной власти, структурного подразделения администрации Краснодарского края | E103: Р.А. Кривонос
A104: Главный бухгалтер | E104: Н.В. Егорова
A105: Начальник отдела | E105: Д.В. Коломиец
A109: исполнитель: И.И. Белецкая тел.267-17-81

Sheet Лист для ввода
H1: Ежеквартально, до 20 числа месяца, следующего за отчетным кварталом
H2: на эл. адрес: monitor@krasnodar.ru
A5: ОТЧЕТ
A6: о результативности предоставления субсидии (субвенции) местным бюджетам муниципальных образований Краснодарского края в рамках реализации государственной программы Краснодарского края
A7: "Развитие сельского хозяйства и регулирование рынков сельскохозяйственной продукции, сырья и продовольствия"
A8: (наименование государственной программы)
A9: "Обеспечение эпизоотического, ветеринарно-санитарного благополучия в Краснодарском крае и развитие государственной ветеринарной службы Краснодарского края"
A10: (наименование подпрограммы государственной программы)
A11: Субвенции на осуществление государственных полномочий по предупреждению и ликвидации болезней животных, их лечению, отлову и содержанию безнадзорных животных, защите населения от болезнй, общих для человека и животных в части регулирования численности безнадзорных животных на территории муниципальных образований Краснодарского края
A12: (наименование субсидии на софинансирование расходного обязательства муниципального образования (далее – МО), возникающего при выполнении полномочий органов местного самоуправления по вопросам местного значения)
A13: за 1 квартал 2018 год
A14: (за I квартал, первое полугодие, 9 месяцев, год)
A16: Наименование муниципального образования (получателя субсидии, субвенции)* | B16: Наименование показателей результативности субсидии (в скобках указать единицы измерения) 1) | J16: Причины невыполнения
B17: 1. численность отловленных безнадзорных животных (не менее ед.) | D17: 2. численность содержавшихся безнадзорных животных (не менее ед.) | F17: 3. численность подобранных и утилизированных павших животных (не менее ед.) | H17: 4.
B18: Плановое значение2) | C18: Фактическое значение | D18: Плановое значение2) | E18: Фактическое значение | F18: Плановое значение2) | G18: Фактическое значение | H18: Плановое значение2) | I18: Фактическое значение
A19: 1 | B19: 2 | C19: 3 | D19: 4 | E19: 5 | F19: 6 | G19: 7 | H19: 8 | I19: 9 | J19: 10
A20: город-курорт Анапа | B20: 624 | D20: 624 | J20: Соглашение заключено
A21: город Армавир | B21: 182 | D21: 182 | J21: Организация мероприятий по заключению соглашения
A22: город-курорт Геленджик | B22: 302 | D22: 302 | J22: Организация мероприятий по заключению соглашения
A23: город Горячий Ключ | B23: 285 | D23: 285 | J23: Организация мероприятий по заключению соглашения
A24: город Краснодар | B24: 2202 | D24: 2202 | J24: Организация мероприятий по заключению соглашения
A25: город Новороссийск | B25: 148 | D25: 148 | J25: Организация мероприятий по заключению соглашения
A26: город-курорт Сочи | B26: 2419 | D26: 2419 | J26: Соглашение заключено
A27: Абинский район, всего район и поселения | B27: =SUM(B28:B36) -> 19 | C27: =SUM(C28:C36) -> 0 | D27: 19 | E27: 0 | F27: 0 | G27: =SUM(G28:G36) -> 0 | H27: 0 | I27: 0 | J27: Соглашение заключено
A28: Абинский район | B28: 19 | D28: 19
A29: Абинское г/п
A30: Ахтырское г/п
A31: Варнавинское с/п
A32: Мингрельское с/п
A33: Ольгинское с/п
A34: Светлогорское с/п
A35: Федоровское с/п
A36: Холмское с/п
A37: Апшеронский район, всего район и поселения | B37: =SUM(B38) -> 37 | C37: =SUM(C38) -> 0 | D37: 37 | E37: 0 | F37: 0 | G37: =SUM(G38:G50) -> 0 | H37: 0 | I37: 0 | J37: Соглашение заключено
A38: Апшеронский район | B38: 37 | D38: 37
A39: Апшеронское г/п
A40: Кабардинское с/п
A41: Кубанское с/п
A42: Куринское с/п
A43: Мезмайское с/п
A44: Нефтегорское г/п
A45: Нижегородское г/п
A46: Новополянское с/п
A47: Отдаленное с/п
A48: Тверское с/п
A49: Хадыженское г/п
A50: Черниговское с/п
A51: Белоглинский район, всего район и поселения | B51: =SUM(B52:B56) -> 13 | C51: 0 | D51: 13 | E51: 0 | F51: 0 | G51: 0 | H51: 0 | I51: 0 | J51: Соглашение заключено
A52: Белоглинский район | B52: 13 | D52: 13
A53: Белоглинское с/п
A54: Новопавловское с/п
A55: Успенское с/п
A56: Центральное с/п
A57: Белореченский район, всего район и поселения | B57: =SUM(B58:B69) -> 157 | C57: 0 | D57: 157 | E57: 0 | F57: 0 | G57: 0 | H57: 0 | I57: 0 | J57: Соглашение заключено
A58: Белореченский район | B58: 157 | D58: 157
A59: Белореченское г/п
A60: Бжедуховское с/п
A61: Великовечненское с/п
A62: Дружненское с/п
A63: Первомайское с/п
A64: Пшехское с/п
A65: Родниковское с/п
A66: Рязанское с/п
A67: Школьненское с/п
A68: Черниговское с/п
A69: Южненское с/п
A70: Брюховецкий район, всего район и поселения | B70: =SUM(B71:B79) -> 5 | C70: =SUM(C71:C79) -> 0 | D70: 5 | E70: 0 | F70: 0 | G70: 0 | H70: 0 | I70: 0 | J70: Соглашение заключено
A71: Брюховецкий район | B71: 5 | D71: 5
A72: Батуринское с/п
A73: Большебейсугское с/п
A74: Брюховецкое с/п
A75: Новоджерелиевское с/п
A76: Новосельское с/п
A77: Переясловское с/п
A78: Свободненское с/п
A79: Чепигинское с/п
A80: Выселковский район, всего район и поселения | B80: =SUM(B81:B91) -> 12 | C80: 0 | D80: 12 | E80: 0 | F80: 0 | G80: 0 | H80: 0 | I80: 0 | J80: Соглашение заключено
A81: Выселковский район | B81: 12 | D81: 12
A82: Бейсугское с/п
A83: Бейсужекское с/п
A84: Березанское с/п
A85: Бузиновское с/п
A86: Выселковское с/п
A87: Газырское с/п
A88: Ирклиевское с/п
A89: Крупское с/п
A90: Новобейсугское с/п
A91: Новомалороссийское с/п
A92: Гулькевичский район, всего район и поселения | B92: =SUM(B93:B108) -> 252 | C92: 0 | D92: 252 | E92: 0 | F92: 0 | G92: 0 | H92: 0 | I92: 0 | J92: Соглашение заключено
A93: Гулькевичский район | B93: 252 | D93: 252
A94: Гулькевичское г/п
A95: Гирейское г/п
A96: Венцы-Заря с/п
A97: Комсомольское с/п
A98: Красносельское г/п
A99: Кубань с/п
A100: Николенское с/п
A101: Новоукраинское с/п
A102: Отрадно-Кубанское с/п
A103: Отрадно-Ольгинское с/п
A104: Пушкинское с/п
A105: Скобелевское с/п
A106: Соколовское с/п
A107: Союз 4-х хуторов с/п
A108: Тысячное с/п
A109: Динской район, всего район и поселения | B109: =SUM(B110:B120) -> 252 | C109: 0 | D109: 252 | E109: 0 | F109: 0 | G109: 0 | H109: 0 | I109: 0 | J109: Организация мероприятий по заключению соглашения
A110: Динской район | B110: 252 | D110: 252
A111: Васюринское с/п
A112: Динское с/п
A113: Красносельское с/п
A114: Мичуринское с/п
A115: Нововеличковское с/п
A116: Новотитаровское с/п
A117: Первореченское с/п
A118: Пластуновское с/п
A119: Старомышастовское с/п
A120: Южно-Кубанское с/п
A121: Ейский район, всего район и поселения | B121: =SUM(B122:B133) -> 374 | C121: 0 | D121: 374 | E121: 0 | F121: 0 | G121: 0 | H121: 0 | I121: 0 | J121: Соглашение заключено
A122: Ейский район | B122: 374 | D122: 374
A123: Александровское с/п
A124: Должанское с/п
A125: Ейское г/п
A126: Ейское с/п
A127: Камышеватское с/п
A128: Копанское с/п
A129: Красноармейское с/п
A130: Кухаривское с/п
A131: Моревское с/п
A132: Трудовое с/п
A133: Ясенское с/п
A134: Кавказский район, всего район и поселения | B134: =SUM(B135:B144) -> 334 | C134: 0 | D134: 334 | E134: 0 | F134: 0 | G134: 0 | H134: 0 | I134: 0 | J134: Организация мероприятий по заключению соглашения
A135: Кавказский район | B135: 334 | D135: 334
A136: Дмитриевское с/п
A137: им. М. Горького с/п
A138: Кавказское с/п
A139: Казанское с/п
A140: Кропоткинское г/п
A141: Лосевское с/п
A142: Мирское с/п
A143: Привольное с/п
A144: Темижбекское с/п
A145: Калининский район, всего район и поселения | B145: =SUM(B146:B154) -> 9 | C145: 0 | D145: 9 | E145: 0 | F145: 0 | G145: 0 | H145: 0 | I145: 0 | J145: Организация мероприятий по заключению соглашения
A146: Калининский район | B146: 9 | D146: 9
A147: Бойкопонурское с/п
A148: Гривенское с/п
A149: Гришковское с/п
A150: Джумайловское с/п
A151: Калининское с/п
A152: Куйбышевское с/п
A153: Новониколаевское с/п
A154: Старовеличковское с/п
A155: Каневской район, всего район и поселения | B155: =SUM(B156:B165) -> 41 | C155: 0 | D155: 41 | E155: 0 | F155: 0 | G155: 0 | H155: 0 | I155: 0 | J155: Соглашение заключено
A156: Каневской район | B156: 41 | D156: 41
A157: Каневское с/п
A158: Красногвардейское с/п
A159: Кубанскостепное с/п
A160: Новодерявянковское с/п
A161: Новоминское с/п
A162: Привольненское с/п
A163: Придорожное с/п
A164: Стародеревянковское с/п
A165: Челбасское с/п
A166: Кореновский район, всего район и поселения | B166: =SUM(B167:B177) -> 252 | C166: 0 | D166: 252 | E166: 0 | F166: 0 | G166: 0 | H166: 0 | I166: 0 | J166: Организация мероприятий по заключению соглашения
A167: Кореновский район | B167: 252 | D167: 252
A168: Братковское с/п
A169: Бураковское с/п
A170: Дядьковское с/п
A171: Журавское с/п
A172: Кореновское г/п
A173: Новоберезанское с/п
A174: Платнировское с/п
A175: Пролетарское с/п
A176: Раздольненское с/п
A177: Сергиевское с/п
A178: Красноармейский район, всего район и поселения | B178: =SUM(B179:B189) -> 135 | C178: 0 | D178: 135 | E178: =SUM(E179:E189) -> 0 | F178: 0 | G178: 0 | H178: 0 | I178: 0 | J178: Соглашение заключено
A179: Красноармейский район | B179: 135 | D179: 135
A180: Ивановское с/п
A181: Марьянское с/п
A182: Новомышастовское с/п
A183: Октябрьское с/п
A184: Полтавское с/п
A185: Протичкинское с/п
A186: Староджерелиевское с/п
A187: Старонижнестеблиевское с/п
A188: Трудобеликовское с/п
A189: Чебургольское с/п
A190: Крыловский район, всего район и поселения | B190: =SUM(B191:B197) -> 81 | C190: 0 | D190: 81 | E190: 0 | F190: 0 | G190: 0 | H190: 0 | I190: 0 | J190: Организация мероприятий по заключению соглашения
A191: Крыловский район | B191: 81 | D191: 81
A192: Крыловское с/п
A193: Кугоейское с/п
A194: Новопашковское с/п
A195: Новосергиевское с/п
A196: Октябрьское с/п
A197: Шевченковское с/п
A198: Крымский район, всего район и поселения | B198: =SUM(B199:B210) -> 56 | C198: 0 | D198: 56 | E198: 0 | F198: 0 | G198: 0 | H198: 0 | I198: 0 | J198: Организация мероприятий по заключению соглашения
A199: Крымский район | B199: 56 | D199: 56
A200: Адагумское с/п
A201: Варениковское с/п
A202: Кеслеровское с/п
A203: Киевское с/п
... 288 more rows
